fUST/lending_fUST_20240210
["ID","MTS","AMOUNT","RATE_DAILY","PERIOD"]
[313643993,1707525033119,-500.0,0.00024555,2]
[313643994,1707525033128,-562.41090453,0.00024555,2]
[313643995,1707525033137,-387.91987325,0.00024555,2]
[313643996,1707525033148,-3046.9840602,0.00024556,2]
[313643997,1707525033158,-5472.19205869,0.00024556,2]
[313643998,1707525033167,-500.0,0.00024556,2]
[313643999,1707525033176,-500.0,0.00024556,2]
[313644000,1707525033187,-4208.54513127,0.00024557,2]
[313644001,1707525033274,-1515.14851334,0.00024557,2]
[313644022,1707525038605,-326.55589937,0.00024556,2]
[313644023,1707525038614,-305.99392744,0.00024556,2]
[313644024,1707525038624,-500.0,0.00024556,2]
[313644025,1707525038634,-300.0,0.00024556,2]
[313644026,1707525038643,-250.0,0.00024556,2]
[313644027,1707525038652,-270.48491904,0.00024556,2]
[313644028,1707525038662,-274.93341283,0.00024556,2]
[313644029,1707525038672,-2083.90918855,0.00024557,2]
[313644032,1707525039096,-2116.9320654,0.00024557,2]
[313644043,1707525041819,-515.26,0.00024547,3]
[313644044,1707525041829,-1225.91420147,0.00024557,2]
[313644045,1707525041841,-22656.05701122,0.00024557,2]
[313644046,1707525041853,-7138.19209868,0.00024557,2]
[313644047,1707525041861,-5937.07768926,0.00024557,2]
[313644234,1707526050100,-154.90705577,0.00021273,2]
[313644235,1707526050122,-154.90705577,0.00021274,2]
[313644236,1707526050143,-190.18588846,0.00021275,2]
[313644315,1707526231671,-878.54131859,0.00021275,2]
[313644322,1707526231730,-518.75148831,0.00021275,2]
[313644323,1707526231740,-7630.18200138,0.00021276,2]
[313644325,1707526231749,-24900.0,0.00021282,2]
[313644327,1707526231759,-292.200685,0.0002167,2]
[313644329,1707526231768,-166.666666,0.00021918,2]
[313644331,1707526231778,-3000.0,0.00022093,2]
[313644333,1707526231788,-200.0,0.00022345,7]
[313644335,1707526231797,-750.36495081,0.00022457,2]
[313644337,1707526231807,-166.666666,0.00022468,2]
[313644339,1707526231816,-166.666666,0.00023018,2]
[313644341,1707526231826,-168.435717,0.00023102,2]
[313644343,1707526231835,-1044.49766567,0.00023527,2]
[313644345,1707526231844,-2607.65626352,0.0002355,2]
[313644433,1707526237764,-1186.74658297,0.00022118,2]
[313644434,1707526237777,-1994.13204623,0.00022118,2]
[313644435,1707526237788,-13787.95749628,0.0002355,2]
[313644437,1707526237915,-199.3862402,0.0002355,2]
[313644438,1707526237930,-166.666666,0.00023568,2]
[313644439,1707526237946,-166.666666,0.00024118,2]
[313644440,1707526237955,-155.11619598,0.00024345,2]
[313644441,1707526237965,-178.8520969,0.00024384,2]
[313644442,1707526237975,-281.9124053,0.00024384,2]
[313644443,1707526237985,-200.0032966,0.00024384,2]
[313644444,1707526237994,-200.0032966,0.00024384,2]
[313644445,1707526238004,-200.91750266,0.00024431,2]
[313644446,1707526238013,-1123.46,0.00024459,3]
[313644447,1707526238022,-936.22,0.00024459,3]
[313644448,1707526238032,-215.32497316,0.00024459,3]
[313644461,1707526241100,-564.85502684,0.00024459,3]
[313644462,1707526241111,-650.15,0.00024459,3]
[313644463,1707526241120,-155.15960432,0.00024468,2]
[313644464,1707526241130,-594.82884788,0.00024469,2]
[313644465,1707526241143,-3373.45963539,0.00024469,2]
[313644466,1707526241156,-5481.44950121,0.00024469,2]
[313644489,1707526244934,-313.46532129,0.00024469,2]
[313644490,1707526244950,-1527.04639324,0.00024469,2]
[313644491,1707526244961,-978.34633277,0.00024469,2]
[313644492,1707526244974,-800.84915085,0.00024469,2]
[313644493,1707526244986,-6449.33104981,0.00024469,2]
[313644505,1707526245737,-1587.47869536,0.00024468,2]
[313644506,1707526245747,-686.05442623,0.00024469,2]
[313644507,1707526245795,-759.04666714,0.00024469,2]
[313644508,1707526245887,-32640.39720979,0.00024469,2]
[313644509,1707526245903,-13659.1624332,0.00024469,2]
[313644510,1707526245913,-155.21544486,0.00024555,2]
[313644511,1707526245922,-154.90705577,0.00024555,2]
[313644512,1707526245933,-500.0,0.00024555,2]
[313644513,1707526245942,-155.6856638,0.00024555,2]
[313644514,1707526245952,-1263.05688852,0.00024555,2]
[313644515,1707526245961,-559.45309906,0.00024555,2]
[313644516,1707526245973,-6299.4069347,0.00024555,2]
[313644517,1707526245982,-199.59356808,0.00024555,2]
[313644518,1707526245992,-168.79463488,0.00024555,2]
[313644519,1707526246001,-155.92519336,0.00024555,2]
[313644520,1707526246011,-3314.94347804,0.00024556,2]
[313644521,1707526246021,-906.16625216,0.00024556,2]
[313644522,1707526246033,-500.0,0.00024556,2]
[313644523,1707526246042,-500.0,0.00024556,2]
[313644524,1707526246053,-500.0,0.00024556,2]
[313644525,1707526246062,-18780.97105653,0.00024557,2]
[313644526,1707526673444,1000.0,0.0003,120]
[313644527,1707526887254,2015.0,0.000288,30]
[313644540,1707527352118,-1587.47869536,0.00020999,2]
[313644541,1707527352139,-4842.40525704,0.00021,2]
[313644582,1707527438091,-156.60298543,0.000209,2]
[313644583,1707527438102,-1131.18339033,0.00021,2]
[313644584,1707527438112,-10324.50896271,0.00021,2]
[313644585,1707527438121,-200.0,0.00021,2]
[313644586,1707527438130,-154.90705577,0.00021,2]
[313644587,1707527438140,-154.90705577,0.00021,2]
[313644588,1707527438149,-166.666666,0.00021918,2]
[313644589,1707527438158,-994.66450876,0.000221,2]
[313644590,1707527438168,-1114.80462034,0.000221,2]
[313644591,1707527438178,-500.24330054,0.00022457,2]
[313644592,1707527438187,-168.435717,0.00022588,2]
[313644593,1707527438197,-24900.0,0.00022606,2]
[313644594,1707527438206,-1587.47869536,0.00022752,2]
[313644595,1707527438219,-12918.8461039,0.00022753,2]
[313644596,1707527438232,-200.0,0.00023203,7]
[313644597,1707527438249,-2112.79946614,0.00023818,5]
[313644598,1707527438262,-651.02501521,0.000239,2]
[313644599,1707527438276,-1500.0,0.00024,2]
[313644600,1707527438287,-620.00000002,0.00024459,2]
[313644601,1707527438297,-928.61,0.00024547,3]
[313644602,1707527438309,-773.84,0.00024547,3]
[313644603,1707527438322,-1183.61,0.00024547,3]
[313644604,1707527438333,-986.34,0.00024547,3]
[313644605,1707527438346,-821.95,0.00024547,3]
[313644606,1707527438357,-3088.16543399,0.00024556,2]
[313644607,1707527438370,-23853.5497908,0.00024557,2]
[313644608,1707527438380,-453.48258564,0.00024557,2]
[313644609,1707527438392,-500.0,0.00024656,2]
[313644610,1707527438403,-223.23549555,0.00024656,2]
[313644611,1707527438413,-500.0,0.00024656,2]
[313644612,1707527438424,-443.66816914,0.00024656,2]
[313644613,1707527438437,-500.0,0.00024656,2]
[313644614,1707527438448,-500.0,0.00024656,2]
[313644615,1707527438459,-500.0,0.00024656,2]
[313644616,1707527438471,-500.0,0.00024656,2]
[313644617,1707527438482,-400.72551242,0.00024657,2]
[313644618,1707527438493,-549.797594,0.00024657,2]
[313644619,1707527438505,-500.0,0.00024657,2]
[313644620,1707527438517,-500.0,0.00024657,2]
[313644621,1707527438527,-500.0,0.00024657,2]
[313644622,1707527438536,-361.18773452,0.00024657,2]
[313644623,1707527438548,-500.0,0.00024657,2]
[313644624,1707527438561,-519.63984303,0.00024657,2]
[313644625,1707527438571,-500.0,0.00024657,2]
[313644626,1707527438584,-500.0,0.00024657,2]
[313644627,1707527438595,-500.0,0.00024657,2]
[313644628,1707527438607,-500.0,0.00024657,2]
[313644629,1707527438617,-500.0,0.00024657,2]
[313644630,1707527438629,-500.0,0.00024657,2]
[313644631,1707527438642,-500.0,0.00024657,2]
[313644632,1707527438653,-500.0,0.00024657,2]
[313644633,1707527438665,-560.81244935,0.00024657,2]
[313644634,1707527438678,-773.0,0.00024657,2]
[313644635,1707527438690,-500.0,0.00024657,2]
[313644636,1707527438703,-817.76,0.00024657,2]
[313644637,1707527438716,-500.0,0.00024657,2]
[313644638,1707527438728,-500.0,0.00024657,2]
[313644639,1707527438738,-500.0,0.00024657,2]
[313644640,1707527438748,-771.77,0.00024657,2]
[313644641,1707527438758,-500.0,0.00024657,2]
[313644642,1707527438768,-500.0,0.00024657,2]
[313644643,1707527438779,-500.0,0.00024657,2]
[313644644,1707527438791,-500.0,0.00024657,2]
[313644645,1707527438803,-500.0,0.00024657,2]
[313644646,1707527438813,-500.0,0.00024657,2]
[313644647,1707527438823,-519.18299543,0.00024657,2]
[313644648,1707527438836,-387.22354282,0.00024657,2]
[313644649,1707527438848,-507.90586278,0.00024657,2]
[313644650,1707527438857,-230.09937331,0.00024657,2]
[313644651,1707527438867,-151.0,0.00024657,2]
[313644652,1707527438877,-151.0,0.00024657,2]
[313644653,1707527438887,-151.0,0.00024657,2]
[313644654,1707527438897,-151.0,0.00024657,2]
[313644655,1707527438907,-151.0,0.00024657,2]
[313644656,1707527438918,-500.0,0.00024657,2]
[313644657,1707527438929,-356.54932735,0.00024657,2]
[313644658,1707527438940,-500.0,0.00024657,2]
[313644659,1707527438950,-500.0,0.00024657,2]
[313644660,1707527438960,-500.0,0.00024657,2]
[313644661,1707527438971,-500.0,0.00024657,2]
[313644662,1707527438982,-500.0,0.00024657,2]
[313644663,1707527438993,-500.0,0.00024657,2]
[313644664,1707527439004,-500.0,0.00024657,2]
[313644665,1707527439015,-253.872999,0.00024657,2]
[313644666,1707527439025,-500.0,0.00024657,2]
[313644667,1707527439036,-500.0,0.00024657,2]
[313644668,1707527439046,-500.0,0.00024657,2]
[313644669,1707527439057,-500.0,0.00024657,2]
[313644670,1707527439067,-500.0,0.00024657,2]
[313644671,1707527439078,-383.60755924,0.00024657,2]
[313644672,1707527439089,-500.0,0.00024657,2]
[313644673,1707527439099,-500.0,0.00024657,2]
[313644674,1707527439110,-531.74712945,0.00024657,2]
[313644675,1707527439120,-529.98413936,0.00024657,2]
[313644676,1707527439130,-546.58684383,0.00024657,2]
[313644677,1707527439140,-506.83299344,0.00024657,2]
[313644678,1707527439151,-500.0,0.00024657,2]
[313644679,1707527439162,-500.0,0.00024657,2]
[313644680,1707527439173,-500.0,0.00024657,2]
[313644681,1707527439184,-500.0,0.00024657,2]
[313644682,1707527439194,-500.0,0.00024657,2]
[313644683,1707527439205,-500.0,0.00024657,2]
[313644684,1707527439216,-500.0,0.00024657,2]
[313644685,1707527439227,-376.53680005,0.00024657,2]
[313644686,1707527439238,-635.93601562,0.00024657,2]
[313644687,1707527439251,-500.0,0.00024657,2]
[313644688,1707527439261,-500.0,0.00024657,2]
[313644689,1707527439272,-1285.04,0.00024657,2]
[313644690,1707527439283,-500.0,0.00024657,2]
[313644691,1707527439293,-820.04,0.00024657,2]
[313644692,1707527439304,-500.0,0.00024657,2]
[313644693,1707527439314,-204.95939019,0.00024657,2]
[313644694,1707527439326,-500.0,0.00024657,2]
[313644695,1707527439337,-500.0,0.00024657,2]
[313644696,1707527439349,-500.0,0.00024657,2]
[313644697,1707527439359,-723.12,0.00024657,2]
[313644698,1707527439369,-500.0,0.00024657,2]
[313644699,1707527439380,-500.0,0.00024657,2]
[313644700,1707527439390,-549.63151351,0.00024657,2]
[313644701,1707527439400,-514.3313414,0.00024657,2]
[313644702,1707527439411,-500.0,0.00024657,2]
[313644703,1707527439422,-500.0,0.00024657,2]
[313644704,1707527439433,-500.0,0.00024657,2]
[313644705,1707527439443,-671.8,0.00024657,2]
[313644706,1707527439453,-500.0,0.00024657,2]
[313644707,1707527439464,-985.7,0.00024657,2]
[313644708,1707527439475,-600.29871677,0.00024657,2]
[313644709,1707527439485,-499.611218,0.00024657,2]
[313644710,1707527439496,-499.611218,0.00024657,2]
[313644711,1707527439506,-500.0,0.00024657,2]
[313644712,1707527439517,-499.611218,0.00024657,2]
[313644713,1707527439527,-499.611218,0.00024657,2]
[313644714,1707527439537,-499.611218,0.00024657,2]
[313644715,1707527439548,-499.611218,0.00024657,2]
[313644716,1707527439558,-499.611218,0.00024657,2]
[313644717,1707527439569,-500.0,0.00024657,2]
[313644718,1707527439579,-499.611218,0.00024657,2]
[313644719,1707527439590,-499.611218,0.00024657,2]
[313644720,1707527439602,-499.611218,0.00024657,2]
[313644721,1707527439614,-500.0,0.00024657,2]
[313644722,1707527439625,-1289.16,0.00024657,2]
[313644723,1707527439634,-572.89,0.00024657,2]
[313644724,1707527439643,-151.0,0.00024657,2]
[313644725,1707527439652,-151.0,0.00024657,2]
[313644726,1707527439661,-500.0,0.00024657,2]
[313644727,1707527439670,-151.0,0.00024657,2]
[313644728,1707527439679,-539.02136947,0.00024657,2]
[313644729,1707527439688,-151.0,0.00024657,2]
[313644730,1707527439863,-151.0,0.00024657,2]
[313644731,1707527439878,-500.0,0.00024657,2]
[313644732,1707527439888,-500.0,0.00024657,2]
[313644733,1707527439898,-151.0,0.00024657,2]
[313644734,1707527439908,-500.0,0.00024657,2]
[313644735,1707527439917,-151.0,0.00024657,2]
[313644736,1707527439927,-151.0,0.00024657,2]
[313644737,1707527439936,-151.0,0.00024657,2]
[313644738,1707527439945,-151.0,0.00024657,2]
[313644739,1707527439955,-500.0,0.00024657,2]
[313644741,1707527439964,-500.0,0.00024657,2]
[313644743,1707527439973,-500.0,0.00024657,2]
[313644744,1707527439982,-500.0,0.00024657,2]
[313644745,1707527439991,-633.04,0.00024657,2]
[313644746,1707527440000,-500.0,0.00024657,2]
[313644747,1707527440010,-500.0,0.00024657,2]
[313644748,1707527440019,-500.0,0.00024657,2]
[313644749,1707527440028,-640.66151112,0.00024657,2]
[313644750,1707527440037,-500.0,0.00024657,2]
[313644751,1707527440046,-500.0,0.00024657,2]
[313644752,1707527440056,-500.0,0.00024657,2]
[313644753,1707527440065,-2769.65,0.00024657,2]
[313644754,1707527440075,-210.5377124,0.00024657,2]
[313644755,1707527440085,-500.0,0.00024657,2]
[313644756,1707527440094,-500.0,0.00024657,2]
[313644757,1707527440104,-500.0,0.00024657,2]
[313644758,1707527440112,-500.0,0.00024657,2]
[313644759,1707527440121,-151.0,0.00024657,2]
[313644760,1707527440130,-164.379198,0.00024657,2]
[313644761,1707527440139,-500.0,0.00024657,2]
[313644762,1707527440148,-504.87146143,0.00024657,2]
[313644763,1707527440158,-500.0,0.00024657,2]
[313644764,1707527440167,-500.0,0.00024657,2]
[313644765,1707527440176,-500.0,0.00024657,2]
[313644766,1707527440185,-500.0,0.00024657,2]
[313644767,1707527440194,-500.0,0.00024657,2]
[313644768,1707527440203,-500.0,0.00024657,2]
[313644769,1707527440212,-822.93474639,0.00024657,2]
[313644770,1707527440222,-514.41808791,0.00024657,2]
[313644771,1707527440231,-1380.65,0.00024657,2]
[313644772,1707527440244,-500.0,0.00024657,2]
[313644774,1707527440252,-506.99209139,0.00024657,2]
[313644775,1707527440261,-500.0,0.00024657,2]
[313644777,1707527440270,-500.0,0.00024657,2]
[313644778,1707527440279,-500.0,0.00024657,2]
[313644779,1707527440288,-745.71,0.00024657,2]
[313644780,1707527440297,-500.0,0.00024657,2]
[313644781,1707527440306,-500.0,0.00024657,2]
[313644782,1707527440315,-210.58292805,0.00024657,2]
[313644783,1707527440326,-500.0,0.00024657,2]
[313644784,1707527440335,-500.0,0.00024657,2]
[313644785,1707527440344,-500.0,0.00024657,2]
[313644786,1707527440355,-513.68155613,0.00024657,2]
[313644787,1707527440365,-500.0,0.00024657,2]
[313644788,1707527440374,-500.0,0.00024657,2]
[313644789,1707527440383,-500.0,0.00024657,2]
[313644790,1707527440392,-440.82856321,0.00024657,2]
[313644791,1707527440402,-500.0,0.00024657,2]
[313644792,1707527440411,-929.83,0.00024657,2]
[313644793,1707527440420,-1437.52,0.00024657,2]
[313644794,1707527440430,-500.0,0.00024657,2]
[313644795,1707527440439,-508.329268,0.00024657,2]
[313644796,1707527440448,-1967.700066,0.00024657,2]
[313644797,1707527440457,-1967.700066,0.00024657,2]
[313644798,1707527440466,-1967.700066,0.00024657,2]
[313644799,1707527440475,-1967.700066,0.00024657,2]
[313644800,1707527440484,-1967.700066,0.00024657,2]
[313644801,1707527440493,-1967.700066,0.00024657,2]
[313644802,1707527440502,-1967.700066,0.00024657,2]
[313644803,1707527440511,-1967.700066,0.00024657,2]
[313644804,1707527440520,-1967.700066,0.00024657,2]
[313644805,1707527440529,-1967.700066,0.00024657,2]
[313644806,1707527440538,-500.0,0.00024657,2]
[313644807,1707527440548,-500.0,0.00024657,2]
[313644808,1707527440556,-7621.09,0.00024657,2]
[313644809,1707527440566,-12032.81,0.00024657,2]
[313644810,1707527440575,-12048.35,0.00024657,2]
[313644811,1707527440584,-500.0,0.00024657,2]
[313644812,1707527440593,-500.0,0.00024657,2]
[313644813,1707527440604,-2677.09,0.00024657,2]
[313644814,1707527440613,-649.64,0.00024657,2]
[313644815,1707527440622,-1565.36,0.00024657,2]
[313644816,1707527440631,-500.0,0.00024657,2]
[313644817,1707527440640,-500.0,0.00024657,2]
[313644818,1707527440649,-500.0,0.00024657,2]
[313644819,1707527440658,-3364.18,0.00024657,2]
[313644820,1707527440667,-9903.63,0.00024657,2]
[313644821,1707527440676,-3006.8,0.00024657,2]
[313644822,1707527440685,-660.58,0.00024657,2]
[313644823,1707527440695,-500.0,0.00024657,2]
[313644824,1707527440704,-150.0,0.00024657,2]
[313644825,1707527440712,-500.0,0.00024657,2]
[313644826,1707527440722,-500.0,0.00024657,2]
[313644827,1707527440731,-500.0,0.00024657,2]
[313644828,1707527440740,-500.0,0.00024657,2]
[313644829,1707527440749,-500.0,0.00024657,2]
[313644830,1707527440758,-17315.28,0.00024657,2]
[313644831,1707527440767,-674.66,0.00024657,2]
[313644832,1707527440776,-500.0,0.00024657,2]
[313644833,1707527440785,-1391.77,0.00024657,2]
[313644834,1707527440794,-29847.23,0.00024657,2]
[313644835,1707527440803,-15178.63,0.00024657,2]
[313644836,1707527440811,-1298.33,0.00024657,2]
[313644837,1707527440821,-716.44,0.00024657,2]
[313644838,1707527440830,-500.0,0.00024657,2]
[313644839,1707527440841,-500.0,0.00024657,2]
[313644840,1707527440850,-151.0,0.00024657,2]
[313644841,1707527440859,-151.0,0.00024657,2]
[313644842,1707527440869,-151.0,0.00024657,2]
[313644843,1707527440878,-151.0,0.00024657,2]
[313644844,1707527440887,-500.0,0.00024657,2]
[313644845,1707527440896,-3526.74,0.00024657,2]
[313644846,1707527440904,-500.0,0.00024657,2]
[313644847,1707527440913,-500.0,0.00024657,2]
[313644848,1707527440922,-539.46195123,0.00024657,2]
[313644849,1707527440931,-2384.03,0.00024657,2]
[313644850,1707527440941,-238.16557632,0.00024657,2]
[313644851,1707527440950,-500.0,0.00024657,2]
[313644852,1707527440959,-1126.53,0.00024657,2]
[313644853,1707527440968,-3477.09,0.00024657,2]
[313644854,1707527440977,-500.0,0.00024657,2]
[313644855,1707527440986,-2161.69,0.00024657,2]
[313644856,1707527440996,-908.41,0.00024657,2]
[313644857,1707527441005,-500.0,0.00024657,2]
[313644858,1707527441014,-500.01,0.00024657,2]
[313644859,1707527441024,-500.0,0.00024657,2]
[313644860,1707527441033,-151.0,0.00024657,2]
[313644861,1707527441042,-151.0,0.00024657,2]
[313644862,1707527441051,-151.0,0.00024657,2]
[313644863,1707527441060,-153.760608,0.00024657,2]
[313644864,1707527441070,-716.62,0.00024657,2]
[313644865,1707527441078,-2808.38,0.00024657,2]
[313644867,1707527441087,-500.0,0.00024657,2]
[313644869,1707527441096,-500.0,0.00024657,2]
[313644870,1707527441106,-500.0,0.00024657,2]
[313644871,1707527441115,-500.0,0.00024657,2]
[313644872,1707527441124,-500.0,0.00024657,2]
[313644873,1707527441133,-500.0,0.00024657,2]
[313644874,1707527441143,-629.2,0.00024657,2]
[313644875,1707527441152,-500.0,0.00024657,2]
[313644876,1707527441161,-500.0,0.00024657,2]
[313644877,1707527441171,-500.0,0.00024657,2]
[313644878,1707527441180,-645.21129754,0.00024657,2]
[313644879,1707527441189,-500.0,0.00024657,2]
[313644880,1707527441198,-500.0,0.00024657,2]
[313644881,1707527441207,-894.26,0.00024657,2]
[313644882,1707527441216,-9340.49,0.00024657,2]
[313644883,1707527441225,-500.0,0.00024657,2]
[313644884,1707527441235,-500.0,0.00024657,2]
[313644885,1707527441247,-500.0,0.00024657,2]
[313644886,1707527441256,-500.0,0.00024657,2]
[313644887,1707527441266,-3724.0,0.00024657,2]
[313644888,1707527441275,-198.13983166,0.00024657,2]
[313644889,1707527441286,-500.0,0.00024657,2]
[313644890,1707527441295,-500.0,0.00024657,2]
[313644891,1707527441304,-1662.03,0.00024657,2]
[313644892,1707527441313,-1367.96,0.00024657,2]
[313644893,1707527441324,-18318.8,0.00024657,2]
[313644894,1707527441334,-511.55,0.00024657,2]
[313644895,1707527441343,-523.16205278,0.00024657,2]
[313644896,1707527441355,-500.0,0.00024657,2]
[313644897,1707527441363,-400.0,0.00024658,2]
[313644898,1707527441372,-151.0,0.00024658,2]
[313644899,1707527441381,-151.0,0.00024666,2]
[313644900,1707527441390,-499.611218,0.00024667,2]
[313644901,1707527441399,-499.611218,0.00024667,2]
[313644902,1707527441408,-151.0,0.00024667,2]
[313644903,1707527441417,-1967.700066,0.00024667,2]
[313644904,1707527441426,-1967.700066,0.00024667,2]
[313644905,1707527441437,-151.0,0.00024667,2]
[313644906,1707527441446,-44444.0,0.00024667,2]
[313644907,1707527441455,-188.4886706,0.00024767,3]
[313644908,1707527441465,-500.0,0.00024767,2]
[313644909,1707527441474,-500.0,0.00024767,2]
[313644910,1707527441483,-500.0,0.00024767,2]
[313644911,1707527441492,-500.0,0.00024767,2]
[313644912,1707527441501,-500.0,0.00024767,2]
[313644913,1707527441510,-500.0,0.00024767,2]
[313644914,1707527441519,-571.43525774,0.00024767,2]
[313644915,1707527441528,-500.0,0.00024767,2]
[313644916,1707527441537,-773.0,0.00024767,2]
[313644917,1707527441546,-500.0,0.00024767,2]
[313644918,1707527441555,-817.76,0.00024767,2]
[313644919,1707527441564,-500.0,0.00024767,2]
[313644920,1707527441573,-500.0,0.00024767,2]
[313644921,1707527441582,-500.0,0.00024767,2]
[313644922,1707527441591,-771.77,0.00024767,2]
[313644923,1707527441600,-500.0,0.00024767,2]
[313644924,1707527441609,-500.0,0.00024767,2]
[313644925,1707527441618,-500.0,0.00024767,2]
[313644926,1707527441627,-500.0,0.00024767,2]
[313644927,1707527441635,-151.0,0.00024767,2]
[313644928,1707527441644,-151.0,0.00024767,2]
[313644929,1707527441653,-151.0,0.00024767,2]
[313644930,1707527441662,-151.0,0.00024767,2]
[313644931,1707527441671,-151.0,0.00024767,2]
[313644932,1707527441680,-500.0,0.00024767,2]
[313644933,1707527441688,-500.0,0.00024767,2]
[313644934,1707527441698,-460.39270934,0.00024767,2]
[313644935,1707527441707,-500.0,0.00024767,2]
[313644936,1707527441716,-500.0,0.00024767,2]
[313644937,1707527441725,-500.0,0.00024767,2]
[313644938,1707527441734,-500.0,0.00024767,2]
[313644939,1707527441743,-500.0,0.00024767,2]
[313644940,1707527441752,-500.0,0.00024767,2]
[313644941,1707527441761,-500.0,0.00024767,2]
[313644942,1707527441771,-500.0,0.00024767,2]
[313644943,1707527441780,-500.0,0.00024767,2]
[313644944,1707527441789,-500.0,0.00024767,2]
[313644945,1707527441799,-500.0,0.00024767,2]
[313644946,1707527441808,-1285.04,0.00024767,2]
[313644947,1707527441817,-820.04,0.00024767,2]
[313644948,1707527441826,-500.0,0.00024767,2]
[313644949,1707527441835,-500.0,0.00024767,2]
[313644950,1707527441844,-500.0,0.00024767,2]
[313644951,1707527441854,-500.0,0.00024767,2]
[313644952,1707527441863,-723.12,0.00024767,2]
[313644953,1707527441873,-500.0,0.00024767,2]
[313644954,1707527441882,-500.0,0.00024767,2]
[313644955,1707527441891,-500.0,0.00024767,2]
[313644956,1707527441900,-500.0,0.00024767,2]
[313644957,1707527441910,-671.8,0.00024767,2]
[313644958,1707527441919,-500.0,0.00024767,2]
[313644959,1707527441928,-985.7,0.00024767,2]
[313644960,1707527441937,-500.0,0.00024767,2]
[313644961,1707527441946,-499.611218,0.00024767,2]
[313644962,1707527441955,-499.611218,0.00024767,2]
[313644963,1707527441964,-499.611218,0.00024767,2]
[313644964,1707527441973,-499.611218,0.00024767,2]
[313644965,1707527441982,-500.0,0.00024767,2]
[313644966,1707527441991,-499.611218,0.00024767,2]
[313644967,1707527442001,-499.611218,0.00024767,2]
[313644968,1707527442010,-499.611218,0.00024767,2]
[313644969,1707527442019,-499.61121262,0.00024767,2]
[313644970,1707527442028,-255.06433237,0.00024767,2]
[313644971,1707527442037,-1289.16,0.00024767,2]
[313644972,1707527442047,-572.89,0.00024767,2]
[313644973,1707527442056,-500.0,0.00024767,2]
[313644974,1707527442066,-500.0,0.00024767,2]
[313644975,1707527442077,-500.0,0.00024767,2]
[313644976,1707527442086,-500.0,0.00024767,2]
[313644977,1707527442095,-229.14261,0.00024767,2]
[313644978,1707527442105,-500.0,0.00024767,2]
[313644979,1707527442115,-500.0,0.00024767,2]
[313644980,1707527442125,-500.0,0.00024767,2]
[313644981,1707527442134,-633.04,0.00024767,2]
[313644982,1707527442144,-500.0,0.00024767,2]
[313644983,1707527442154,-500.0,0.00024767,2]
[313644984,1707527442163,-500.0,0.00024767,2]
[313644985,1707527442172,-520.25187621,0.00024767,2]
[313644986,1707527442181,-500.0,0.00024767,2]
[313644987,1707527442190,-500.0,0.00024767,2]
[313644988,1707527442200,-2769.65,0.00024767,2]
[313644989,1707527442209,-500.0,0.00024767,2]
[313644990,1707527442218,-500.0,0.00024767,2]
[313644991,1707527442227,-500.0,0.00024767,2]
[313644992,1707527442237,-500.0,0.00024767,2]
[313644993,1707527442247,-500.0,0.00024767,2]
[313644994,1707527442256,-500.0,0.00024767,2]
[313644995,1707527442265,-500.0,0.00024767,2]
[313644996,1707527442275,-500.0,0.00024767,2]